bitfinex/quotes_ETHUSD_20250929
["timestamp","ask_amount","ask_price","bid_price","bid_amount"]
[1759106887326,17.7529029,4141.1,4141.0,1e-08]
[1759106887769,17.7539029,4141.1,4141.0,1e-08]
[1759106888052,16.0368919,4141.1,4141.0,1e-08]
[1759106888819,22.9672599,4141.1,4141.0,1e-08]
[1759106890155,7.3769389,4141.1,4141.0,1e-08]
[1759106890358,14.5079699,4141.1,4141.0,0.24490001]
[1759106890558,17.3209559,4141.1,4141.0,1e-08]
[1759106890756,14.1479559,4141.1,4141.0,1e-08]
[1759106891063,14.20071809,4141.1,4141.0,1e-08]
[1759106891260,13.15048209,4141.1,4141.0,1e-08]
[1759106893652,10.53270109,4141.1,4141.0,1e-08]
[1759106893964,13.29871909,4141.1,4141.0,1e-08]
[1759106894259,13.67756113,4141.1,4141.0,1e-08]
[1759106896138,13.67356113,4141.1,4141.0,1e-08]
[1759106897063,13.67156113,4141.1,4141.0,1e-08]
[1759106899260,13.29271909,4141.1,4141.0,1e-08]
[1759106899461,10.19571909,4141.1,4141.0,1e-08]
[1759106899761,13.29071909,4141.1,4141.0,1e-08]
[1759106900971,14.74271909,4141.1,4141.0,1e-08]
[1759106901773,11.64771909,4141.1,4141.0,1e-08]
[1759106902064,13.21159209,4141.1,4141.0,0.70420001]
[1759106902272,20.50183657,4141.1,4141.0,0.70420001]
[1759106902460,20.88067689,4141.1,4141.0,0.22940001]
[1759106902659,20.88067689,4141.1,4141.0,1e-08]
[1759106902971,17.78567689,4141.1,4141.0,1e-08]
[1759106903369,20.87867689,4141.1,4141.0,1e-08]
[1759106904144,17.78567689,4141.1,4141.0,1e-08]
[1759106904343,20.87767689,4141.1,4141.0,1e-08]
[1759106904575,7.80854141,4141.1,4141.0,1e-08]
[1759106904879,15.00273911,4141.1,4141.0,0.70420001]
[1759106911662,11.91073911,4141.1,4141.0,0.70420001]
[1759106911858,14.61889879,4141.1,4141.0,0.70420001]
[1759106914960,14.99772796,4141.1,4141.0,0.70420001]
[1759106915392,11.91072796,4141.1,4141.0,0.70420001]
[1759106915598,16.42927162,4141.1,4141.0,0.70420001]
[1759106918695,16.05044245,4141.1,4141.0,0.70420001]
[1759106919801,39.09295045,4141.1,4141.0,1e-08]
[1759106920006,39.43135045,4141.1,4141.0,1e-08]
[1759106920189,39.43135045,4141.1,4140.6,0.002]
[1759106920190,2.41505059,4140.7,4140.6,0.002]
[1759106920496,25.9932855,4140.7,4140.6,0.002]
[1759106921581,22.8779405,4140.7,4140.6,0.002]
[1759106923310,21.98882481,4140.7,4140.6,0.002]
[1759106925091,21.66684192,4140.6,4140.1,0.002]
[1759106925408,10.96982373,4140.2,4140.1,0.002]
[1759106925596,14.17982373,4140.2,4140.1,0.002]
[1759106925916,29.31919773,4140.2,4140.1,0.002]
[1759106926213,11.47874428,4140.2,4140.1,0.2486]
[1759106926374,14.55874428,4140.2,4140.1,0.7023]
[1759106926578,16.19996332,4140.2,4140.1,0.7023]
[1759106927413,13.11996332,4140.2,4140.1,0.2486]
[1759106927792,16.19896332,4140.2,4140.1,0.2486]
[1759106928214,13.11996332,4140.2,4140.1,0.2486]
[1759106928518,13.11996332,4140.2,4140.1,0.7023]
[1759106928519,15.82004277,4140.2,4140.1,0.7023]
[1759106929031,15.82004277,4140.2,4140.1,0.2486]
[1759106930604,15.82004277,4140.2,4140.1,0.7023]
[1759106930933,15.82004277,4140.2,4140.1,0.2486]
[1759106931134,12.74104277,4140.2,4140.1,0.2486]
[1759106931348,15.81904277,4140.2,4140.1,0.2486]
[1759106931549,16.19795387,4140.2,4140.1,0.2486]
[1759106931749,16.19795387,4140.2,4140.1,0.002]
[1759106935049,16.19495387,4140.2,4140.1,0.002]
[1759106937808,31.05785287,4140.2,4140.1,0.002]
[1759106938012,39.23746187,4140.2,4140.1,0.002]
[1759106939339,34.85166087,4140.2,4140.1,0.002]
[1759106939545,34.37010387,4140.2,4140.1,0.002]
[1759106939847,33.99119277,4140.2,4140.1,0.002]
[1759106940261,15.81604277,4140.2,4140.1,0.7023]
[1759106941555,15.81604277,4140.2,4140.1,0.002]
[1759106941755,16.15444277,4140.2,4140.1,0.002]
[1759106942031,15.81604277,4140.2,4140.1,0.002]
[1759106942556,15.81604277,4140.2,4140.1,0.7023]
[1759106942557,7.97856129,4140.2,4140.1,0.7023]
[1759106942755,0.001,4140.5,4140.1,0.7023]
[1759106942927,3.071,4140.4,4140.2,0.7003]
[1759106943129,3.071,4140.4,4140.3,0.7003]
[1759106943326,8.48622558,4140.4,4140.3,0.7003]
[1759106943861,6.071,4140.4,4140.3,0.7003]
[1759106944966,8.48622558,4140.4,4140.3,0.7003]
[1759106945867,6.071,4140.4,4140.3,0.7003]
[1759106946761,3.0,4140.4,4140.3,0.7003]
[1759106950031,0.37987091,4140.5,4140.3,0.7003]
[1759106950236,0.37987091,4140.5,4140.4,0.6822]
[1759106950237,6.069,4140.5,4140.4,0.6822]
[1759106951372,3.001,4140.5,4140.4,0.6822]
[1759106951572,6.068,4140.5,4140.4,0.6822]
[1759106955979,3.001,4140.5,4140.4,0.6822]
[1759106956840,3.001,4140.5,4140.4,0.2263]
[1759106957239,3.001,4140.5,4140.1,0.4482]
[1759106957444,3.001,4140.5,4140.2,0.679]
[1759106957638,3.001,4140.5,4140.3,0.679]
[1759106957842,3.001,4140.5,4140.4,0.679]
[1759106958347,0.001,4140.5,4140.4,0.679]
[1759106970259,0.001,4140.5,4140.4,3.09422558]
[1759106970664,0.001,4140.5,4140.4,3.21422558]
[1759106972000,0.001,4140.5,4140.4,6.27622558]
[1759106972993,0.001,4140.5,4140.4,6.76856177]
[1759106974397,0.001,4140.5,4140.4,10.87856177]
[1759106974597,0.001,4140.5,4140.4,9.76856177]
[1759106975588,0.001,4141.6,4141.3,2.41470069]
[1759106975898,0.001,4141.6,4141.3,10.98558712]
[1759106976195,0.001,4141.6,4141.3,11.78458712]
[1759106976772,0.001,4141.6,4141.3,14.78458712]
[1759106982499,0.001,4141.6,4141.5,3.20658408]
[1759106982676,0.001,4141.6,4141.5,6.26758408]
[1759106982877,0.001,4141.6,4141.5,9.95898408]
[1759106983082,0.001,4141.6,4141.5,14.18898408]
[1759106983894,0.001,4141.6,4141.5,10.33598408]
[1759106984430,0.001,4141.6,4141.5,6.64458408]
[1759106984592,0.001,4141.6,4141.5,2.41458408]
[1759106984780,0.4694,4141.6,4141.5,5.47458408]
[1759106984979,0.1565,4141.6,4141.5,5.47458408]
[1759106985910,0.4694,4141.6,4141.3,0.12]
[1759106986086,0.4694,4141.6,4141.3,5.59469925]
[1759106986288,0.001,4141.6,4141.3,5.59469925]
[1759106986599,0.001,4141.6,4141.4,2.41464239]
[1759106986600,0.4684,4141.5,4141.4,2.41464239]
[1759106986802,0.1555,4141.5,4141.4,2.41464239]
[1759106987115,0.001,4141.6,4141.5,2.41458408]
[1759106987412,0.001,4141.6,4141.5,5.47458408]
[1759106987609,0.1565,4141.6,4141.5,5.47458408]
[1759106988608,0.1565,4141.6,4141.3,2.53469168]
[1759106988609,0.4694,4141.6,4141.3,0.12]
[1759106988829,0.4694,4141.6,4141.2,3.06]
[1759106989009,0.4684,4141.5,4141.2,3.06]
[1759106989189,0.4684,4141.4,4141.2,3.06]
[1759106989394,0.4684,4141.3,4141.2,3.06]
[1759106989594,0.1555,4141.3,4141.2,5.474759]
[1759106989918,0.001,4141.6,4141.5,2.41458408]
[1759106990218,0.001,4141.6,4141.5,5.47458408]
[1759106990517,0.001,4141.6,4141.5,5.59458408]
[1759106991737,0.001,4141.6,4141.5,5.82898408]
[1759106991909,0.001,4141.6,4141.5,6.28598408]
[1759106994102,0.001,4141.6,4141.5,5.59458408]
[1759106994415,0.001,4141.6,4141.5,6.28598408]
[1759106998619,0.001,4141.6,4141.5,5.59458408]
[1759106999214,0.001,4141.6,4141.5,6.28598408]
[1759106999619,0.001,4141.6,4141.5,10.51598408]
[1759107003724,0.001,4141.6,4141.5,13.51598408]
[1759107005137,0.001,4141.6,4141.5,9.76458408]
[1759107005441,0.001,4141.6,4141.5,13.51598408]
[1759107007102,0.4684,4143.1,4142.4,2.41405948]
[1759107007428,0.4684,4143.1,4142.4,5.47405948]
[1759107007626,0.4684,4143.1,4142.4,5.59405948]
[1759107008430,0.1555,4143.0,4142.4,5.59405948]
[1759107013228,0.001,4143.9,4142.4,5.59405948]
[1759107013417,0.001,4143.0,4142.4,5.59405948]
[1759107013732,0.001,4143.0,4142.4,5.82055948]
[1759107014042,0.1555,4142.9,4142.4,5.59405948]
[1759107016401,0.001,4143.0,4142.4,2.53405948]
[1759107016607,0.4694,4142.5,4142.4,5.59305948]
[1759107016807,0.1565,4142.5,4142.4,5.59305948]
[1759107018602,0.001,4142.5,4142.4,5.59305948]
[1759107020037,0.001,4142.5,4142.4,0.12]
[1759107020038,0.1565,4142.5,4142.4,0.12]
[1759107020246,0.1565,4142.5,4142.4,5.59305948]
[1759107020247,0.4694,4142.5,4142.4,5.59305948]
[1759107020635,0.4694,4142.5,4142.4,3.179]
[1759107020838,0.4694,4142.5,4142.4,3.059]
[1759107021338,0.4694,4142.5,4142.1,3.059]
[1759107021519,0.75673324,4142.4,4142.1,3.059]
[1759107021719,0.4684,4142.3,4142.1,3.059]
[1759107021917,0.4684,4142.2,4141.3,0.002]
[1759107022262,3.0,4141.9,4141.3,0.002]
[1759107022753,0.4684,4141.8,4141.3,0.002]
[1759107022961,0.66746926,4141.7,4141.3,0.002]
[1759107023450,0.4684,4141.6,4141.3,0.002]
[1759107024748,4.75913247,4141.4,4141.3,0.002]
[1759107024932,10.96577486,4141.4,4141.3,0.002]
[1759107025255,12.88579207,4141.4,4141.3,0.002]
[1759107025439,13.2646018,4141.4,4141.3,0.002]
[1759107026251,21.6940458,4141.4,4141.3,0.002]
[1759107026552,21.2385978,4141.4,4141.3,0.002]
[1759107027320,16.5131698,4141.4,4141.3,0.002]
[1759107027636,13.2646018,4141.4,4141.3,0.002]
[1759107027840,16.3246018,4141.4,4141.3,0.002]
[1759107028240,19.5489708,4141.4,4141.3,0.002]
[1759107028438,16.3246018,4141.4,4141.3,0.002]
[1759107028636,8.1266596,4141.4,4141.3,0.002]
[1759107030268,30.7387446,4141.4,4141.3,0.002]
[1759107030563,8.1266596,4141.4,4141.3,0.002]
[1759107031167,11.1866596,4141.4,4141.3,0.002]
[1759107031663,8.1266596,4141.4,4141.3,0.002]
[1759107031866,11.56549605,4141.4,4141.3,0.002]
[1759107033366,34.60800405,4141.4,4141.3,0.002]
[1759107033773,32.60509905,4141.4,4141.3,0.002]
[1759107034233,11.56549605,4141.4,4141.3,0.002]
[1759107034768,20.01913805,4141.4,4141.3,0.002]
[1759107035342,13.26462852,4141.4,4141.3,0.002]
[1759107035569,19.57418952,4141.4,4141.3,0.002]
[1759107036469,33.79125599,4141.4,4141.3,0.002]
[1759107037338,44.12626899,4141.4,4141.3,0.002]
[1759107038473,49.39630527,4141.4,4141.3,0.002]
[1759107039053,49.01746882,4141.4,4141.3,0.002]
[1759107041279,47.63465382,4141.4,4141.3,0.002]
[1759107041454,30.89708482,4141.4,4141.3,0.002]
[1759107041776,6.8662596,4141.4,4141.3,0.002]
[1759107041983,9.9262596,4141.4,4141.3,0.002]
[1759107042146,11.09709718,4141.4,4141.3,0.002]
[1759107043754,26.0408984,4141.4,4141.3,0.002]
[1759107044072,26.3537984,4141.4,4141.3,0.002]
[1759107044280,49.3963064,4141.4,4141.3,0.002]
[1759107044645,46.3363064,4141.4,4141.3,0.002]
[1759107044841,49.3973064,4141.4,4141.3,0.002]
[1759107045867,50.8493064,4141.4,4141.3,0.002]
[1759107048782,50.47046882,4141.4,4141.3,0.002]
[1759107048988,34.61957382,4141.4,4141.3,0.002]
[1759107049289,37.09757382,4141.4,4141.3,0.002]
[1759107049596,48.41885982,4141.4,4141.3,0.002]
[1759107050085,47.79913882,4141.4,4141.3,0.002]
[1759107050479,50.47046882,4141.4,4141.3,0.002]
[1759107050858,49.99190982,4141.4,4141.3,0.002]
[1759107051057,48.73913882,4141.4,4141.3,0.002]
[1759107051396,26.95956082,4141.4,4141.3,0.002]
[1759107051555,46.88305682,4141.4,4141.3,0.002]
[1759107051751,47.26190964,4141.4,4141.3,0.002]
[1759107052552,49.59376664,4141.4,4141.3,0.002]
[1759107052763,43.29034364,4141.4,4141.3,0.002]
[1759107053000,35.36784364,4141.4,4141.3,0.002]
[1759107053499,36.14122664,4141.4,4141.3,0.002]
[1759107054200,36.60962664,4141.4,4141.3,0.002]
[1759107054602,45.94797164,4141.4,4141.3,0.002]
[1759107054909,45.63507164,4141.4,4141.3,0.002]
[1759107055091,48.18207164,4141.4,4141.3,0.002]
[1759107055292,45.63507164,4141.4,4141.3,0.002]
[1759107055671,49.08442164,4141.4,4141.3,0.002]
[1759107056373,49.08442164,4141.4,4140.8,1e-08]
[1759107056374,0.792,4141.2,4140.8,1e-08]
[1759107056591,6.20693395,4140.9,4140.8,1e-08]
[1759107056893,32.31044195,4140.9,4140.8,1e-08]
[1759107057265,32.68933087,4140.9,4140.8,1e-08]
[1759107058699,32.31044195,4140.9,4140.8,1e-08]
[1759107058995,32.46594195,4140.9,4140.8,1e-08]
[1759107059195,34.8286042,4140.9,4140.8,1e-08]
[1759107059570,33.2477592,4140.9,4140.8,1e-08]
[1759107059772,33.1986982,4140.9,4140.8,1e-08]
[1759107060003,32.8875292,4140.9,4140.8,1e-08]
[1759107060303,37.65077005,4140.9,4140.8,1e-08]
[1759107060719,16.54933705,4140.9,4140.8,1e-08]
[1759107061013,38.98033305,4140.9,4140.8,1e-08]
[1759107061778,39.97073534,4140.9,4140.8,1e-08]
[1759107063203,39.96973534,4140.9,4140.8,1e-08]
[1759107063714,10.1784081,4140.5,4140.4,1e-08]
[1759107063952,14.87694814,4140.5,4140.4,1e-08]
[1759107064208,29.04921914,4140.5,4140.4,1e-08]
[1759107064408,24.28597829,4140.5,4140.4,1e-08]
[1759107064608,26.57863414,4140.5,4140.4,0.44470001]
[1759107064769,22.98169714,4140.5,4140.4,0.44470001]
[1759107065176,3.20734225,4140.2,4140.1,0.002]
[1759107065372,13.54874535,4140.2,4140.1,0.002]
[1759107065607,35.71861735,4140.2,4140.1,0.002]
[1759107065808,39.97021182,4140.2,4140.1,0.002]
[1759107066119,37.94210182,4140.2,4140.1,0.002]
[1759107066422,35.64946082,4140.2,4140.1,0.002]
[1759107066585,31.04552082,4140.2,4140.1,0.002]
[1759107067727,29.87824282,4140.2,4140.1,0.002]
[1759107067909,21.31273582,4140.2,4140.1,0.2328]
[1759107068103,24.37273582,4140.2,4140.1,0.6775]
[1759107068979,23.99377735,4140.2,4140.1,0.6775]
[1759107070747,23.99377735,4140.2,4140.1,0.2328]
[1759107070923,23.99377735,4140.2,4140.1,0.6651]
[1759107071215,18.0851781,4140.2,4140.1,0.6651]
[1759107072053,18.46408966,4140.2,4140.1,0.6651]
[1759107073608,18.59928866,4140.2,4140.1,0.6651]
[1759107074444,19.93728866,4140.2,4140.1,0.6651]
[1759107074608,18.60106266,4140.2,4140.1,0.6651]
[1759107074942,21.11775356,4140.2,4140.1,0.6651]
[1759107075278,22.45575356,4140.2,4140.1,0.6651]
[1759107075446,19.39575356,4140.2,4140.1,0.6651]
[1759107075654,22.45575356,4140.2,4140.1,0.6651]
[1759107076358,5.79425381,4140.2,4140.1,0.6651]
[1759107076526,8.85425381,4140.2,4140.1,0.6651]
[1759107076723,14.40949466,4140.2,4140.1,0.002]
[1759107076950,14.40949466,4140.2,4140.1,0.7012]
[1759107078221,11.34949466,4140.2,4140.1,0.7012]
[1759107078421,14.40949466,4140.2,4140.1,0.7012]
[1759107078621,14.0305831,4140.2,4140.1,0.7012]
[1759107080360,15.68485531,4140.2,4140.1,0.7012]
[1759107080574,12.62485531,4140.2,4140.1,0.7012]
[1759107080880,15.68485531,4140.2,4140.1,0.7012]
[1759107081078,12.62485531,4140.2,4140.1,0.002]
[1759107081280,15.68485531,4140.2,4140.1,0.002]
[1759107082468,12.62485531,4140.2,4140.1,0.002]
[1759107082651,15.68485531,4140.2,4140.1,0.002]
[1759107084380,39.43676331,4140.2,4140.1,0.002]
[1759107084785,33.76299631,4140.2,4140.1,0.002]
[1759107086286,34.51316509,4140.2,4140.1,0.002]
[1759107086482,34.75397309,4140.2,4140.1,0.002]
[1759107086698,32.32332809,4140.2,4140.1,0.002]
[1759107087194,10.92161446,4140.2,4140.1,0.7012]
[1759107088284,10.92161446,4140.2,4140.1,0.002]
[1759107088285,16.43502409,4140.2,4140.1,0.002]
[1759107088484,17.14442409,4140.2,4140.1,0.002]
[1759107088687,17.14442409,4140.2,4139.7,0.002]
[1759107088688,21.415759,4140.1,4139.7,0.002]
[1759107088887,11.72098526,4139.8,4139.7,0.002]
[1759107089201,11.72098526,4139.8,4139.3,0.2353]
[1759107089202,3.792,4139.7,4139.3,0.002]
[1759107089369,11.72121868,4139.4,4139.3,0.002]
[1759107089569,21.39163068,4139.4,4139.3,0.002]
[1759107090309,20.92431568,4139.4,4139.3,0.002]
[1759107090594,22.77803632,4139.4,4139.3,0.002]
[1759107092074,23.15703023,4139.4,4139.3,0.002]
[1759107092475,22.40959323,4139.4,4139.3,0.002]
[1759107092808,14.50515923,4139.4,4139.3,0.7012]
[1759107093001,9.64580296,4139.4,4139.3,0.7012]
[1759107095291,5.79480296,4139.4,4139.3,0.7012]
[1759107095499,8.85380296,4139.4,4139.3,0.7012]
[1759107098340,2.65105069,4139.5,4139.3,0.7012]
[1759107098341,0.2353,4139.5,4139.3,0.7012]
[1759107098491,2.41579812,4139.5,4139.4,0.6992]
[1759107098695,5.41579812,4139.5,4139.4,0.6992]
[1759107102235,5.41580905,4139.4,4139.3,0.002]
[1759107103233,6.20780905,4139.4,4139.3,0.002]
[1759107103438,6.99045944,4139.4,4139.3,0.002]
[1759107103641,10.04945944,4139.4,4139.3,0.002]
[1759107103934,6.20804252,4139.0,4138.9,0.226]
[1759107104118,9.26704252,4139.0,4138.9,0.226]
[1759107104319,9.26704252,4139.0,4138.9,0.6632]
[1759107105244,9.93024252,4139.0,4138.9,0.6632]
[1759107105737,9.13824252,4139.0,4138.9,0.6632]
[1759107106226,2.41610089,4138.9,4138.8,0.002]
[1759107106539,5.41610089,4138.9,4138.8,0.2422]
[1759107106840,5.41610089,4138.9,4138.8,0.6794]
[1759107107139,8.47510089,4138.9,4138.8,0.6794]
[1759107108615,8.47510089,4138.9,4138.8,0.2422]
[1759107110024,8.47510089,4138.9,4138.8,0.002]
[1759107111762,0.6794,4139.0,4138.8,0.6794]
[1759107112062,5.41604568,4139.0,4138.9,0.6774]
[1759107112366,5.85524568,4139.0,4138.9,0.6774]
[1759107113160,2.41610089,4138.9,4138.8,0.002]
[1759107113660,2.41610089,4138.9,4138.8,0.6794]
[1759107117379,2.41610089,4138.9,4138.8,0.2422]
[1759107117785,2.41610089,4138.9,4138.8,0.6794]
[1759107118979,2.41610089,4138.9,4138.8,0.002]
[1759107119985,8.47410089,4138.9,4138.8,0.002]
[1759107120186,8.70400089,4138.9,4138.8,0.002]
[1759107120417,8.47410089,4138.9,4138.8,0.002]
[1759107120886,8.47410089,4138.9,4138.8,0.6794]
[1759107121699,8.47410089,4138.9,4138.8,0.002]
[1759107123101,8.47410089,4138.9,4138.8,0.2422]
[1759107123888,8.70400089,4138.9,4138.8,0.002]
[1759107124101,8.47410089,4138.9,4138.8,0.002]
[1759107127107,11.08199378,4138.9,4138.8,0.002]
[1759107129406,20.71881378,4138.9,4138.8,0.002]
[1759107129579,16.71893778,4138.9,4138.8,0.002]
[1759107129774,11.08199378,4138.9,4138.8,0.002]
[1759107130705,8.02399378,4138.9,4138.8,0.002]
[1759107130907,8.47410089,4138.9,4138.8,0.002]
[1759107133323,5.41610089,4138.9,4138.8,0.7007]
[1759107133624,8.47310089,4138.9,4138.8,0.7007]
[1759107134608,3.0,4138.9,4138.8,0.7007]
[1759107135035,5.41610089,4138.9,4138.8,0.7007]
[1759107135993,5.41710089,4138.9,4138.8,0.7007]
[1759107138518,3.001,4138.9,4138.8,0.7007]
[1759107138930,5.41710089,4138.9,4138.8,0.7007]
[1759107140728,3.001,4138.9,4138.8,0.7007]
[1759107140928,0.001,4138.9,4138.8,0.7007]
[1759107144841,0.001,4138.9,4138.8,3.14102086]
[1759107145345,0.001,4138.9,4138.8,3.11685927]
[1759107146228,0.001,4138.9,4138.8,7.90275624]
[1759107146402,0.001,4138.9,4138.8,7.87859465]
[1759107146729,0.001,4139.0,4138.8,7.87859465]
[1759107146933,0.001,4139.0,4138.9,3.13896189]
[1759107147238,0.001,4139.0,4138.9,6.17080089]
[1759107147529,0.001,4139.0,4138.9,3.11480089]
[1759107147698,0.001,4139.0,4138.9,10.93253627]
[1759107149501,0.001,4139.0,4138.9,6.17080089]
[1759107149703,0.001,4139.0,4138.9,10.93253627]
[1759107151341,0.001,4139.0,4138.9,11.05333627]
[1759107156142,0.001,4139.0,4138.9,10.35363627]
[1759107156439,0.001,4139.0,4138.9,11.05233627]
[1759107156653,0.001,4139.0,4138.9,2.53690089]
[1759107156835,0.001,4139.0,4138.9,5.59190089]
[1759107157506,0.001,4139.0,4138.9,2.53690089]
[1759107157743,0.001,4139.0,4138.9,5.59190089]
[1759107157986,0.001,4139.0,4138.9,0.1208]
[1759107157987,0.7123,4139.0,4138.9,0.1208]
[1759107158118,0.7123,4139.0,4138.9,3.1758]
[1759107158546,0.7123,4139.0,4138.8,0.002]
[1759107158715,0.4643,4138.9,4138.8,3.057]
[1759107158915,0.7129,4138.9,4138.8,3.057]
[1759107160949,0.7129,4138.9,4138.8,0.002]
[1759107162031,0.7129,4138.9,4138.8,2.41815927]
[1759107162238,0.001,4139.0,4138.9,2.41610089]
[1759107162444,0.4653,4139.0,4138.9,0.1208]
[1759107162770,0.7139,4139.0,4138.9,0.1208]
[1759107163138,0.7139,4139.0,4138.9,2.53690089]
[1759107163139,0.001,4139.0,4138.9,2.53690089]
[1759107163962,0.001,4139.0,4138.9,0.1208]
[1759107164339,0.001,4139.0,4138.9,2.53690089]
[1759107166279,0.7139,4139.0,4138.9,0.1208]
[1759107166438,0.7139,4139.0,4138.9,3.1758]
[1759107166643,0.7139,4139.0,4138.8,0.002]
[1759107166957,0.4643,4138.9,4138.8,0.002]
[1759107167478,0.7129,4138.9,4138.8,0.002]
[1759107167668,0.2486,4138.9,4138.8,0.002]
[1759107167838,0.001,4139.0,4138.8,2.41815927]
[1759107168044,0.2496,4139.0,4138.8,2.41815927]
[1759107168243,0.2496,4139.0,4138.8,0.002]
[1759107168469,0.2486,4138.9,4138.8,0.002]
[1759107168983,0.7129,4138.9,4138.8,0.002]
[1759107170725,0.001,4139.0,4138.8,0.002]
[1759107171806,0.001,4139.0,4138.8,2.44230925]
[1759107171976,0.001,4139.0,4138.8,0.02616159]
[1759107172371,0.001,4139.0,4138.9,3.055]
[1759107173107,0.001,4139.0,4138.9,3.079161]
[1759107174204,0.001,4139.0,4138.9,3.055]
[1759107174401,0.001,4139.0,4138.9,3.079161]
[1759107175728,0.001,4139.0,4138.9,6.20556189]
[1759107175908,0.001,4139.0,4138.9,6.18140089]
[1759107176082,0.001,4139.0,4138.9,6.30220089]
[1759107179335,0.001,4139.0,4138.9,0.1208]
[1759107179638,0.001,4139.0,4138.9,5.59090089]
[1759107180336,0.001,4139.0,4138.9,6.30120089]
[1759107180738,0.001,4139.0,4138.9,10.53120089]
[1759107181636,0.001,4139.0,4138.9,10.41040089]
[1759107181840,0.001,4139.0,4138.9,10.53120089]
[1759107182407,0.001,4139.0,4138.9,6.30120089]
[1759107182808,0.001,4139.0,4138.9,9.30120089]
[1759107184107,0.001,4139.0,4138.9,10.09320089]
[1759107184320,0.001,4139.4,4139.3,2.41586741]
[1759107184651,0.001,4139.4,4139.3,18.78533817]
[1759107184852,0.001,4139.4,4139.3,18.90533817]
[1759107185152,0.001,4139.4,4139.3,14.85390279]
[1759107186668,0.001,4139.4,4139.3,15.34419119]
[1759107186966,0.001,4139.8,4139.7,2.41563398]
[1759107187164,0.001,4139.8,4139.7,10.37452569]
[1759107187354,0.001,4139.8,4139.7,11.06066936]
[1759107188253,0.001,4139.8,4139.7,12.76940474]
[1759107188425,0.001,4139.8,4139.7,15.82240474]
[1759107189225,0.001,4139.8,4139.7,19.61440474]
[1759107189620,0.001,4139.8,4139.7,19.71125224]
[1759107192432,0.001,4139.8,4139.7,19.71365224]
[1759107196063,0.001,4140.3,4139.8,2.41557563]
[1759107196261,0.001,4140.3,4139.8,7.38563138]
[1759107196461,0.001,4140.3,4139.8,7.36147563]
[1759107197051,0.001,4140.3,4139.8,11.40731101]
[1759107197255,0.2364,4139.9,4139.8,17.45931101]
[1759107197632,0.2364,4139.9,4139.8,14.45931101]
[1759107198584,0.001,4139.9,4139.8,11.40731101]
[1759107198876,0.7102,4139.9,4139.8,14.45931101]
[1759107199036,0.2364,4139.9,4139.8,14.45931101]
[1759107199455,0.7102,4139.9,4139.8,14.45931101]
[1759107201492,0.7102,4139.9,4139.8,10.22931101]
[1759107202556,0.7102,4139.9,4139.8,7.17731101]
[1759107202785,0.7102,4139.9,4139.7,0.12]
[1759107203184,0.4738,4139.8,4139.7,0.12]
[1759107203487,0.78637178,4139.8,4139.7,3.052]
[1759107203685,1.02177178,4139.8,4139.7,3.052]
[1759107204667,0.7092,4139.8,4139.4,0.12]
[1759107204985,0.7092,4139.8,4139.3,0.002]
[1759107204986,2.41570222,4139.6,4139.3,0.002]
[1759107205486,0.7092,4139.5,4139.3,0.002]
[1759107206367,0.4738,4139.8,4139.3,0.02615867]
[1759107206559,0.7092,4139.7,4139.3,2.56198244]
[1759107206795,0.7092,4139.6,4139.3,5.58982377]
[1759107206975,0.7092,4139.5,4139.3,5.58982377]
[1759107207176,0.7092,4139.4,4139.3,5.58982377]
[1759107207370,0.2354,4139.4,4139.3,5.58982377]
[1759107207573,0.7092,4139.4,4139.3,5.58982377]
[1759107207970,0.7092,4139.4,4139.3,0.002]
[1759107208375,1.02168984,4139.4,4139.3,0.002]
[1759107209611,2.41575138,4139.5,4139.3,0.002]
[1759107209612,0.2354,4139.6,4139.3,3.054]
[1759107209792,0.2354,4139.6,4139.3,5.58985666]
[1759107210301,0.2354,4139.5,4139.3,3.174]
[1759107210500,0.2364,4139.9,4139.3,3.174]
[1759107210671,0.001,4139.9,4139.3,3.174]
[1759107210870,0.7092,4139.8,4139.3,5.58986191]
[1759107211083,0.7092,4139.7,4139.3,5.58986191]
[1759107211267,0.7092,4139.6,4139.3,5.58986191]
[1759107211601,0.001,4139.9,4139.3,3.174]
[1759107211796,0.001,4139.9,4139.5,2.5357015]
[1759107211997,0.001,4139.9,4139.6,3.052]
[1759107212299,0.2354,4139.8,4139.6,3.052]
[1759107212516,0.001,4139.9,4139.7,0.02415633]
[1759107212668,0.001,4139.9,4139.8,5.46757563]
[1759107212868,0.001,4139.9,4139.8,5.71367563]
[1759107213781,0.001,4139.9,4139.8,5.46757563]
[1759107215207,0.7102,4139.9,4139.7,0.12]
[1759107215505,0.7092,4139.8,4139.7,0.12]
[1759107215702,0.7092,4139.8,4139.7,3.172]
[1759107217509,0.7092,4139.8,4139.7,5.58763398]
[1759107218375,0.2354,4139.8,4139.7,5.58763398]
[1759107218575,0.001,4139.9,4139.7,5.58763398]
[1759107218777,0.2374,4139.9,4139.7,5.58763398]
[1759107218972,0.2374,4139.9,4139.7,3.172]
[1759107219179,0.001,4139.9,4139.7,3.172]
[1759107219389,0.2364,4139.8,4139.7,3.172]
[1759107222020,0.2364,4139.8,4139.7,0.12]
[1759107222190,0.6826,4139.8,4139.7,3.172]
[1759107224205,0.001,4139.9,4139.7,3.172]
[1759107224504,0.2364,4139.8,4139.7,0.12]
[1759107224905,0.6826,4139.8,4139.7,3.171]
[1759107226013,5.41563398,4139.7,4139.6,0.002]
[1759107226393,3.09823398,4139.7,4139.6,0.002]
[1759107226592,6.09823398,4139.7,4139.6,0.002]
[1759107228580,6.09823398,4139.7,4139.3,1e-08]